Cogmind - Beta 13 @@@ ROGUE MODE // 2024.05.22 @ 16:15:26 Player: ROOK Result: Destroyed by YI-UF0 with YI-UF0's Doublenader Performance ------------- Evolutions (0) 0 Regions Visited (2) 400 Robots Destroyed (9) 45 Value Destroyed (65) 65 Prototype IDs (0) 0 Alien Tech Used (0) 0 Bonus (0) 0 TOTAL SCORE: 510 Bonus ------- None Cogmind --------- Core Integrity 0/250 Matter 300/300 Energy 100/100 System Corruption 0% Temperature Cool (0) Movement Walking (120) Location -10/Mines Parts ------- > --- POWER (1) -------- (None) > --- PROPULSION (2) --- Aluminum Leg > --- UTILITY (2) ------ Medium Storage Unit > --- WEAPON (2) ------- (None) > --- INVENTORY (10) --- Light Ion Engine Combat Airjet Small Storage Unit Seismic Detector ECM Suite Improved Light Armor Plating Light Assault Rifle Light Assault Rifle Hammer Peak State ------------ > --- POWER ------------ Light Ion Engine > --- PROPULSION ------- Aluminum Leg Aluminum Leg > --- UTILITY ---------- Medium Storage Unit Improved Terrain Scanner > --- WEAPON ----------- Medium Laser Assault Rifle > --- INVENTORY -------- Light Ion Engine Combat Airjet Small Storage Unit Seismic Detector ECM Suite Light Assault Rifle Light Assault Rifle Hammer [Rating: 10] Favorites ----------- Power Light Ion Engine Engine Light Ion Engine Propulsion Aluminum Leg Leg Aluminum Leg Utility Improved Terrain Scanner Device Improved Terrain Scanner Storage Medium Storage Unit Weapon Assault Rifle Energy Gun Medium Laser Ballistic Gun Assault Rifle Special Weapon Mining Laser Build | -11 -10 -10 ------- Run | Yrd Mat Min Slots Evolved . | . . . Power . | . . . Propulsion . | . . . Utility . | . . . Weapon . | . . . Parts Attached 11 | 8 3 . Power 1 | 1 . . Engine 1 | 1 . . Core . | . . . Reactor . | . . . Propulsion 2 | 2 . . Treads . | . . . Leg 2 | 2 . . Wheel . | . . . Hover . | . . . Flight . | . . . Utility 4 | 3 1 . Device 2 | 2 . . Storage 2 | 1 1 . Processor . | . . . Hackware . | . . . Protection . | . . . Artifact . | . . . Weapon 4 | 2 2 . Energy Gun 1 | . 1 . Energy Cannon . | . . . Ballistic Gun 2 | 2 . . Ballistic Cannon . | . . . Launcher . | . . . Special Weapon 1 | . 1 . Impact Weapon . | . . . Slashing Weapon . | . . . Piercing Weapon . | . . . Special Melee Weapon . | . . . Unidentified Prototypes . | . . . Parts Lost 6 | . 1 5 Power 1 | . . 1 Propulsion 1 | . . 1 Utility 1 | . . 1 Weapon 3 | . 1 2 Highest Loss Streak 5 | . 1 5 To Critical Strikes . | . . . Average Slot Usage (%) 99 | . 100 98 Engine 14 | . 14 14 Leg 28 | . 28 28 Device 13 | . 14 13 Storage 14 | . 14 14 Energy Gun 12 | . 11 14 Ballistic Gun 15 | . 15 13 Naked Turns . | . . . Heaviest Build 18 | 12 18 18 Greatest Support 20 | 20 20 20 Greatest Overweight (x) 2 | 2 . . Average Overweight (x) . | . . . Largest Inventory Capacity 10 | 8 10 10 Average Capacity 9 | 7 9 10 Most Carried 9 | 5 6 9 Average Carried 5 | 2 5 6 Final Capacity 10 | 8 10 10 Final Carried 9 | 4 6 9 Class Distribution -------------------- 100% | Mutant Dominant Class ---------------- Mutant | -10/Materials Mutant | -10/Mines Resources | -11 -10 -10 ----------- Run | Yrd Mat Min Matter Collected 372 | 310 62 . Remotely . | . . . Salvage Created 206 | 145 61 . Parts 21 | 13 8 . Haulers Intercepted . | . . . Recyclers Shooed 1 | . 1 . Parts Field Recycled . | . . . Retrieved Matter . | . . . Parts Self-Destructed . | . . . Prevented . | . . . Kills | -11 -10 -10 ------- Run | Yrd Mat Min Combat Hostiles Destroyed 3 | . 3 . Guns 3 | . 3 . Classes Destroyed 4 | 2 2 . Worker 1 | . 1 . Tunneler 4 | 4 . . Recycler 1 | 1 . . Swarmer 3 | . 3 . Best Kill Streak 3 | 1 3 . Combat Bots Only 3 | . 3 . Max Kills in Single Turn 2 | 1 2 . Gunslinging 1 | . 1 . Exploded . | . . . Melee . | . . . Uniques/NPCs Destroyed . | . . . Combat | -11 -10 -10 -------- Run | Yrd Mat Min Hostile Shots Fired 53 | . 36 17 Missed 10 | . 6 4 Damage Taken 725 | . 254 471 Core 258 | . 53 205 Absorbed by Shields . | . . . Core Remaining (%) 100 | 100 . . Volleys Fired 19 | 10 9 . Largest 2 | 2 2 . Hottest 120 | 40 120 . Shots Fired 38 | 20 18 . Gun 35 | 20 15 . Cannon . | . . . Launcher . | . . . Special 3 | . 3 . Kinetic 29 | 20 9 . Thermal 9 | . 9 . Explosive . | . . . Electromagnetic . | . . . Robot Hit Streak 5 | 5 2 . Robot Miss Streak 3 | 3 3 . Penetration Max . | . . . Secondary Targets 1 | . 1 . Max Gunslinging Chain 1 | . 1 . Shots Hit Robots 19 | 13 6 . Core Hits 12 | 7 5 . Critical Kills . | . . . Critical Parts Destroyed . | . . . Critical Strikes 1 | . 1 . Burn 1 | . 1 . Melee Attacks . | . . . Impact . | . . . Slashing . | . . . Piercing . | . . . Sneak Attacks . | . . . Combat Hostiles . | . . . Follow-up Attacks . | . . . Damage Inflicted 269 | 132 122 15 Guns 223 | 130 93 . Cannons . | . . . Explosions . | . . . Melee . | . . . Ramming 22 | 2 5 15 Kinetic 185 | 130 55 . Thermal 62 | . 62 . Explosive . | . . . Electromagnetic . | . . . Impact . | . . . Slashing . | . . . Piercing . | . . . Highest Corruption . | . . . Average Corruption . | . . . Corruption Purged . | . . . Corruption Blocked . | . . . Overload Shots . | . . . Overflow Damage . | . . . Projectiles . | . . . Explosions . | . . . Melee . | . . . Knockbacks . | . . . Impact . | . . . Kinetic . | . . . Secondary . | . . . Self-Inflicted Damage . | . . . Shots . | . . . Rammed . | . . . Targets Rammed 7 | 1 3 3 Kicked 7 | 1 3 3 Crushed . | . . . Highest Temperature 67 | . 67 . Average Temperature 32 | . 32 . Received Heat Transfer . | . . . Siege Activations . | . . . Robots Corrupted . | . . . Combat Hostiles . | . . . Parts Fried . | . . . Impact Corruptions . | . . . Robots Melted . | . . . Combat Hostiles . | . . . Parts Melted . | . . . Heat Transferred 235 | . 235 . Parts Sabotaged . | . . . Parts Stolen . | . . . Parts Stripped . | . . . Power Chain Reactions . | . . . Alert | -11 -10 -10 ------- Run | Yrd Mat Min Peak Influence 82 | 25 82 17 Initial 17 | . 16 17 Average 38 | 13 63 16 Maximum Alert Level . | . . . Low Security (%) 100 | 100 100 100 Level 1 . | . . . Level 2 . | . . . Level 3 . | . . . Level 4 . | . . . Level 5 . | . . . High Security . | . . . Max Security . | . . . Squads Dispatched . | . . . Investigation . | . . . Extermination . | . . . Reinforcement . | . . . Assault . | . . . Garrison . | . . . Intercept . | . . . Searches Triggered . | . . . Construction Impeded . | . . . Haulers Reinforced . | . . . Active Scanning Responses . | . . . Cargo Convoy Interrupts . | . . . Stealth | -11 -10 -10 --------- Run | Yrd Mat Min Distress Signals 2 | . 2 . Communications Jammed . | . . . Distress Signals . | . . . Times Spotted 18 | . 8 10 Peak Tracking Total 9 | . 4 9 Tactical Retreats 2 | . 2 . Traps | -11 -10 -10 ------- Run | Yrd Mat Min Traps Triggered . | . . . Indirectly . | . . . Trap Hack Attempts . | . . . Triggered . | . . . Disarmed . | . . . Reprogrammed . | . . . Reused . | . . . Traps Extracted . | . . . Installed . | . . . Triggered . | . . . Machines | -11 -10 -10 ---------- Run | Yrd Mat Min Machines Disabled . | . . . Max in Single Turn . | . . . Machines Repaired . | . . . Machines Dismantled . | . . . Machines Sabotaged . | . . . Overloaded Fab Kills . | . . . Hacking | -11 -10 -10 --------- Run | Yrd Mat Min Machines Accessed 2 | . 2 . Terminals 1 | . 1 . Fabricators . | . . . Repair Stations . | . . . Recycling Units 1 | . 1 . Scanalyzers . | . . . Garrison Access . | . . . Total Hacks 6 | . 6 . Successful 3 | . 3 . Failed 3 | . 3 . Catastrophic . | . . . Database Lockouts . | . . . Manual . | . . . Terminals 2 | . 2 . Fabricators . | . . . Repair Stations . | . . . Recycling Units 4 | . 4 . Scanalyzers . | . . . Garrison Access . | . . . Terminal Hacks . | . . . Fabricator Hacks . | . . . Repair Station Hacks . | . . . Recycling Unit Hacks 3 | . 3 . Report Inventory 1 | . 1 . Retrieve Components 2 | . 2 . Scanalyzer . | . . . Garrison Access Hacks . | . . . Unauthorized Hacks . | . . . Terminals . | . . . Fabricators . | . . . Repair Stations . | . . . Recycling Units . | . . . Scanalyzers . | . . . Garrison Access . | . . . Data Cores Recovered . | . . . Used . | . . . Hacking Detections 2 | . 2 . Full Trace Events . | . . . Feedback Events . | . . . Feedback Blocked . | . . . Robot Schematics Acquired . | . . . Robots Built . | . . . Authchips . | . . . Time . | . . . Total Robot Build Rating . | . . . Part Schematics Acquired . | . . . Parts Built . | . . . Authchips . | . . . Time . | . . . Total Part Build Rating . | . . . Parts Repaired . | . . . Time . | . . . Parts Recycled . | . . . Recycled Matter . | . . . Retrieved Matter . | . . . Retrieved Components 2 | . 2 . Parts Scanalyzed . | . . . Part Schematics Acquired . | . . . Parts Damaged . | . . . Bothacking | -11 -10 -10 ------------ Run | Yrd Mat Min Used RIF Installer . | . . . Robots Hacked . | . . . Non-combat . | . . . Combat . | . . . Robot Hacks Applied . | . . . Relay Couplers Released . | . . . Fabnet Peak Effective % . | . . . Robots Rewired . | . . . Allies Hacked . | . . . Hacks Repelled . | . . . Allies | -11 -10 -10 -------- Run | Yrd Mat Min Total Allies . | . . . Largest Group . | . . . Highest-Rated Group . | . . . Highest-Rated Ally . | . . . Total Orders . | . . . Ally Attacks . | . . . Total Damage . | . . . Kills . | . . . Allies Corrupted . | . . . Allies Melted . | . . . Intel | -11 -10 -10 ------- Run | Yrd Mat Min Robot Analysis Total . | . . . Derelict Logs Recovered . | . . . Drone Launches . | . . . Drone Recoveries . | . . . Exploration | -11 -10 -10 ------------- Run | Yrd Mat Min Turns Passed 905 | 216 439 250 Spaces Moved 573 | 152 218 203 Core 30 | 30 . . Treads . | . . . Legs 543 | 122 218 203 Wheels . | . . . Hover . | . . . Flight . | . . . Fastest Speed 50 | 50 120 120 Average Speed 117 | 110 120 120 Slowest Speed 150 | 150 120 120 Overloaded Moves . | . . . Propulsion Burnouts . | . . . Robots Hopped . | . . . Cave-ins Triggered . | . . . Exploration Rate (%) 29 | 8 32 49 Regions Visited 2 Branch Regions 1 Pre-discovered Areas . | . . . Known Exits Taken . | . . . Unknown Exits Taken 2 | 1 1 . Scrap Searched 1 | . . 1 Spaces Dug . | . . . Terrain Destroyed 1 | . 1 . Melee . | . . . Projectile 1 | . 1 . AOE . | . . . Terrain Rammed . | . . . Walls Destroyed . | . . . Machines Disabled . | . . . Actions | -11 -10 -10 --------- Run | Yrd Mat Min Total 759 | 180 370 209 Wait 133 | . 133 . Move 571 | 151 217 203 Hop . | . . . Pick Up 17 | 10 4 3 Fast Attach 1 | 1 . . Attach 7 | 6 1 . Detach . | . . . Swap 3 | 1 2 . Drop 1 | . 1 . Fire 19 | 10 9 . Melee . | . . . Ram . | . . . Kick 7 | 1 3 3 Crush . | . . . Escape Stasis . | . . . Rewire . | . . . Trap . | . . . Miscellaneous . | . . . Route ------- -11/Scrapyard -10/Materials (discovered 2 exits: [*Min x2]) -10/Mines (discovered 2 exits: [*Mat x2]) History --------- Turn | Location | Event 3 | -11/Scrapyard | Discovered new exit (range 15) 217 | -11/Scrapyard | Entered Materials 264 | -10/Materials | Discovered new exit (range 16) 310 | -10/Materials | Build established: Mutant 630 | -10/Materials | Discovered new exit (range 9) 656 | -10/Materials | Entered Mines 744 | -10/Mines | Discovered new exit (range 7) 816 | -10/Mines | YI-UF0 nonchalantly dropped a Grenade Launcher on the ground 822 | -10/Mines | Assembled infested the area 827 | -10/Mines | Assisted by a Guerilla fighting off Assembled 901 | -10/Mines | Core integrity fell below 50% 903 | -10/Mines | Core integrity fell below 20% 904 | -10/Mines | Discovered new exit (range 14) 906 | -10/Mines | Destroyed by YI-UF0 with YI-UF0's Doublenader Last Messages --------------- Assault Rifle destroyed. Imp. Terrain Scanner destroyed. U-05 Engineer lays Concrete. K-01 Serf collects debris. U-05 Engineer lays Concrete. Lgt. Ion Engine destroyed. The unstable cave ceiling collapses. U-05 Engineer lays Concrete. U-05 Engineer destroyed. Med. Laser destroyed. K-01 Serf collects debris. Acquired Imp. Light Armor Plating. The unstable cave ceiling collapses. Aluminum Leg destroyed. U-05 Engineer destroyed. YI-UF0: "BOOSH!" R-06 Scavenger destroyed. EXIT=FOUND YI-UF0 mumbles something. K-01 Serf collects debris. Map ----- +----------------------------------------------------+ | ??????????????? ???? ?? ??????? ??? | | ????????#??????# #???? ??????????????? | | ???????????????# #???? #???????????????? | | ?#???????#????## #???? #?###???????????? | | ????#????# #### ####? #?# ??????? ???? | | ?????????# ## #?# ##??????????? | | ?#???????#### # #?# #??????#????? | | ???????###??# # #?# #???????????? | | ??????####### # ?#%#???????????? | | ??#???# # !#???#???????? | | ??????# ####### # !#?#?????????? | | ???#### #???#?# # #???????? ## | | ??## ###???# g # ###### # | | ?## ##??# a % | | ??# """ ##?# =%*%! | | ??# """ ### ## ##? | | ??# """ ## ! ???#?? #?? | | ??# # ###??????????? | | ??## ######????????????? | | ???# ## #??????????????????? | | ???# ### ###??????????????????? | | ???####??## ! ##???????????????????? | | #??#??#???## ##??????? ?????????? | | ???????????# ! #### < ????????? | | ????????#?### % ?????????? | | ??????????# != @ # ##??? ????????????? | | ??????????# # *|! #?? ?????????????? | | ??????????## % ##?? ?????????????? | | ?????????## ## ###### ?????????????? | | ?????????# k #???????#????? | | ?????????# ######## #????????????? | | ?????????## #####?#???## #????????????? | | ??????????## #????#?????# #????????????? | | ????#???#??# ####???????# #????????????? | | ???????????# #???????# ##??##???#???? | | ???????###?# #???????# #????????????? | | ??????## ##### #??????## #????????????? | | ??????# #??# ##??????# #????????????? | | ??????# ### #??#????# #????????????? | | ???????# ##?###### ###??????????? | | ???????## < #??# ###????????? | | ????????## #??# ########## | | ???#?????## ##??# #### | | ??????????## ##???# #?## | | ???????????## #????# ### ########### | | ????????????# ###### ## ##???????#?# | | ????????????# ## #??????????? | | ????????????# ## """ ##?????????? | | ????????????############ """ #??#??????? | | ???????????????????????# """ #?????????? | +----------------------------------------------------+ Best States ------------- Heat Dissipation 25 Energy Generation 10 Energy Capacity 125 Matter Stores 300 Matter Capacity 300 Sight Range 16 Terrain Scan Range 16 Terrain Scan Density 10 Evasion (%) 55 Item Schematics ----------------- None Robot Schematics ------------------ None Fabricated ------------ Nothing Alien Tech Used ----------------- None Achievements -------------- None Challenges ------------ None Game ------ Seed LargeHardcellShielding Manual? 0 Play Time 00:09:09 Cumulative 3.8 hours Start 2024.05.22 @ 16:08:21 End 2024.05.22 @ 16:15:26 Sessions 1 Manual Loads 0 Difficulty Rogue Special Mode None Game No. 7 Rogue 7 Adventurer 0 Explorer 0 Win Type - Total 0 Types 0/0/0/0/0/0/0/0/0 Lore% 2 Gallery% 7 Achievement% 5 Wizard Run 0 Options --------- Layout 0 ASCII 0 Keyboard 0 Movement Arrows Keybinds 0 Fullscreen 1 Font 24/Smallcaps Map View 38x25 Zoom Use 100% Tactical HUD 0 Map Filters NONE Filters NONE Steam 1 RUN: ca905675-93b9-4688-938e-00de2638bd71